bitfinex/quotes_ETHUSD_20250106
["timestamp","ask_amount","ask_price","bid_price","bid_amount"]
[1736134118999,8.97868907,3669.8,3669.7,35.04814875]
[1736134120197,6.69612805,3669.8,3669.7,35.04814875]
[1736134121700,8.31632794,3669.8,3669.7,35.04814875]
[1736134122820,10.59888896,3669.8,3669.7,35.04814875]
[1736134124705,8.31632794,3669.8,3669.7,35.04814875]
[1736134127305,4.24368805,3669.8,3669.7,35.04814875]
[1736134127604,4.24368805,3669.8,3669.7,35.33034875]
[1736134129211,1.14140428,3670.2,3669.7,35.33034875]
[1736134129413,1.14140428,3670.2,3669.7,0.33034875]
[1736134129618,1.14140428,3670.2,3669.7,0.2822]
[1736134129831,1.14140428,3670.2,3670.1,35.0]
[1736134130001,1.14140428,3670.2,3670.1,35.04770968]
[1736134130561,1.14140428,3670.2,3670.1,38.0474856]
[1736134130733,2.08412577,3670.2,3670.1,38.0474856]
[1736134131045,2.08412577,3670.2,3670.1,39.22489152]
[1736134132248,1.14140428,3670.4,3670.2,0.2822]
[1736134132553,1.14140428,3670.4,3670.3,1.17740592]
[1736134132695,1.14140428,3670.4,3670.3,3.94224641]
[1736134133146,1.14140428,3670.4,3670.3,2.76484049]
[1736134133696,3.5001389,3670.9,3670.3,2.76484049]
[1736134135305,2.35873462,3670.9,3670.4,0.2822]
[1736134135506,2.35873462,3670.9,3670.6,0.2822]
[1736134136027,2.35873462,3670.9,3670.7,0.04716944]
[1736134136232,2.35873462,3670.9,3670.8,35.0]
[1736134136609,2.35873462,3670.9,3670.8,35.04714566]
[1736134137013,1.71210642,3671.2,3670.8,35.32934566]
[1736134137014,1.14140428,3671.2,3670.8,35.32934566]
[1736134137210,1.14140428,3671.2,3670.9,2.71757592]
[1736134137524,1.14140428,3671.2,3671.0,0.04709811]
[1736134138633,4.53544577,3671.5,3671.0,0.04709811]
[1736134139437,2.08412577,3671.5,3671.0,0.04709811]
[1736134139737,0.94272149,3671.4,3671.0,2.76467403]
[1736134140303,0.94272149,3671.4,3671.0,0.04709811]
[1736134140703,2.08412577,3671.6,3671.1,35.0]
[1736134140928,2.08412577,3671.6,3671.1,35.04707434]
[1736134141326,2.08412577,3671.6,3671.2,0.2822]
[1736134141505,4.53539577,3671.6,3671.2,0.2822]
[1736134141705,4.53539577,3671.6,3671.3,0.04639283]
[1736134142156,4.53539577,3671.6,3671.2,0.2822]
[1736134142361,2.45127,3671.6,3671.4,0.04636906]
[1736134142506,2.45127,3671.6,3671.3,0.04639283]
[1736134142703,2.45127,3671.6,3671.5,0.04634529]
[1736134143233,2.45127,3671.6,3671.2,0.2822]
[1736134143403,2.45127,3671.6,3671.3,0.04639283]
[1736134143603,2.45127,3671.6,3671.2,0.2822]
[1736134143804,2.45127,3671.6,3671.3,0.04639283]
[1736134144106,2.45127,3671.6,3671.2,0.2822]
[1736134144306,2.45127,3671.6,3671.4,0.04636906]
[1736134144618,2.45127,3671.6,3671.5,0.04634529]
[1736134144830,2.45127,3671.6,3671.2,0.2822]
[1736134145028,2.45127,3671.6,3671.3,0.04639283]
[1736134145240,2.45127,3671.6,3671.2,2.99977592]
[1736134145449,2.45127,3671.6,3671.3,0.04639283]
[1736134145809,2.45127,3671.6,3671.2,2.99977592]
[1736134146125,2.45127,3671.6,3671.3,0.04639283]
[1736134146528,2.45127,3671.6,3671.2,0.2822]
[1736134146828,2.45127,3671.6,3671.3,0.04639283]
[1736134147029,0.7972,3671.9,3671.1,35.0]
[1736134147247,0.7972,3671.9,3671.2,0.0464166]
[1736134147248,2.45144,3671.3,3671.2,0.0464166]
[1736134147409,2.45144,3671.3,3671.1,35.0]
[1736134147605,2.45144,3671.3,3671.2,0.0464166]
[1736134147830,2.45144,3671.3,3671.1,35.0]
[1736134148030,2.45144,3671.3,3671.2,0.0464166]
[1736134148231,2.45144,3671.3,3671.1,35.0]
[1736134148444,2.45144,3671.3,3671.2,0.0464166]
[1736134148640,2.45144,3671.3,3671.1,35.0]
[1736134148943,2.45144,3671.3,3671.2,0.0464166]
[1736134149310,2.45144,3671.3,3671.1,35.0]
[1736134149537,2.45139,3671.4,3671.2,0.0464166]
[1736134149942,2.45139,3671.4,3671.1,35.0]
[1736134150240,2.45126,3671.6,3671.2,0.0464166]
[1736134150407,1.93860428,3671.9,3671.1,35.0]
[1736134150602,1.93860428,3671.9,3671.2,0.0464166]
[1736134150603,0.7681,3671.8,3671.2,0.0464166]
[1736134151541,2.45138,3671.4,3671.2,0.0464166]
[1736134151909,2.45138,3671.4,3671.1,35.0]
[1736134152110,2.45138,3671.4,3671.3,0.04639283]
[1736134152311,0.7681,3671.8,3671.2,0.0464166]
[1736134152634,2.45138,3671.4,3671.3,0.04645429]
[1736134152811,2.45151,3671.2,3671.1,35.0]
[1736134153009,2.45172,3670.9,3670.4,0.2822]
[1736134153206,0.8228,3671.4,3670.5,1.17653565]
[1736134153448,2.45155,3671.2,3670.6,35.0]
[1736134155246,3.27418,3671.4,3670.7,1.17653565]
[1736134155432,3.27418,3671.4,3670.8,0.2822]
[1736134155863,3.27418,3671.4,3671.1,35.0]
[1736134157321,0.8228,3671.4,3671.1,35.0]
[1736134157525,2.45145,3671.3,3671.1,35.0]
[1736134160129,2.45145,3671.3,3671.2,0.04647806]
[1736134160539,2.45145,3671.3,3670.8,0.2822]
[1736134160748,2.45145,3671.3,3671.2,0.04647806]
[1736134160949,2.778875,3671.3,3671.2,35.0]
[1736134161256,2.45145,3671.3,3671.2,35.04647806]
[1736134161412,1.14140428,3671.8,3671.2,35.04647806]
[1736134161620,2.45131,3671.6,3671.2,35.04647806]
[1736134162015,1.14140428,3671.7,3671.2,35.04647806]
[1736134162238,2.45139,3671.4,3671.2,35.04647806]
[1736134162654,2.45125,3671.6,3671.2,35.04647806]
[1736134163745,0.7612,3671.5,3671.2,35.04647806]
[1736134163933,2.45144,3671.3,3671.2,0.04647806]
[1736134164345,0.7612,3671.5,3670.6,35.0]
[1736134164346,2.45153,3671.2,3670.6,35.0]
[1736134165057,2.45158,3671.1,3670.7,0.04662061]
[1736134165556,2.45158,3671.1,3670.5,1.45873565]
[1736134165862,2.45158,3671.1,3670.8,35.0]
[1736134166366,2.45158,3671.1,3670.9,0.04657305]
[1736134166545,2.45159,3671.1,3670.9,0.04657305]
[1736134166756,0.8271,3671.0,3670.9,0.04657305]
[1736134167546,2.45145,3671.3,3670.9,0.04657305]
[1736134168053,1.91960428,3671.4,3670.9,0.04657305]
[1736134168258,2.45151,3671.2,3670.9,0.04657305]
[1736134170490,2.45151,3671.2,3671.0,35.0]
[1736134170853,2.45151,3671.2,3671.1,0.0465255]
[1736134172087,4.80898675,3671.2,3671.1,0.0465255]
[1736134173218,2.35747675,3671.2,3671.1,0.0465255]
[1736134173499,3.49888103,3671.2,3671.1,2.76410142]
[1736134174145,3.49888103,3671.2,3671.1,0.0465255]
[1736134174350,3.49888103,3671.2,3671.1,35.0465255]
[1736134174988,2.28256102,3671.5,3671.1,35.0465255]
[1736134174989,1.14140428,3671.5,3671.1,35.0465255]
[1736134176491,2.08439498,3671.4,3671.1,35.0465255]
[1736134177958,4.53585498,3671.3,3671.1,0.0465255]
[1736134178294,5.05695373,3671.3,3670.7,0.2822]
[1736134178599,4.53585498,3671.3,3670.8,35.0]
[1736134178767,4.53585498,3671.3,3670.8,36.22113917]
[1736134178968,2.08439498,3671.3,3670.8,36.22113917]
[1736134179196,4.24704301,3671.2,3670.8,36.22113917]
[1736134180688,1.14328619,3671.0,3670.8,36.22113917]
[1736134180882,1.14328619,3671.0,3670.9,2.71757592]
[1736134181083,1.14328619,3671.0,3670.9,2.76224072]
[1736134181397,1.14328619,3671.0,3670.9,0.0446648]
[1736134181565,1.14328619,3671.0,3670.9,35.0446648]
[1736134181763,3.50076294,3671.0,3670.9,35.0446648]
[1736134182965,2.08627689,3671.0,3670.9,35.0446648]
[1736134185480,2.08627689,3671.0,3670.9,38.0446648]
[1736134185681,2.08627689,3671.0,3670.9,41.04444072]
[1736134185682,0.9429907,3671.0,3670.9,41.04444072]
[1736134187387,2.08627689,3671.2,3670.9,41.04444072]
[1736134187595,2.08627689,3671.2,3671.0,1.17653565]
[1736134187901,2.08627689,3671.2,3671.1,0.04455582]
[1736134188414,0.9429907,3671.2,3671.1,35.04455582]
[1736134189601,2.35747675,3671.2,3671.1,35.04455582]
[1736134192489,4.07240604,3671.2,3671.1,35.04455582]
[1736134192689,4.07240604,3671.2,3671.1,36.50329147]
[1736134193188,4.07240604,3671.2,3671.1,35.04455582]
[1736134193829,4.07240604,3671.2,3671.1,36.50329147]
[1736134194013,2.35747675,3671.2,3671.1,37.28943457]
[1736134195645,0.9429907,3671.2,3671.1,37.28943457]
[1736134196284,0.9429907,3671.2,3671.1,40.28943457]
[1736134198235,0.9429907,3671.2,3671.1,39.50329147]
[1736134198543,0.9429907,3671.3,3671.1,39.22109147]
[1736134199639,2.08622255,3671.3,3671.1,39.22109147]
[1736134201000,0.9429907,3671.3,3671.1,39.22109147]
[1736134201637,0.9429907,3671.3,3671.1,4.22109147]
[1736134202252,0.9429907,3671.3,3671.2,35.0]
[1736134204640,0.9429907,3671.3,3671.2,36.29972924]
[1736134206622,0.9429907,3671.3,3671.2,39.29972924]
[1736134206859,2.08622255,3671.6,3671.3,3.0]
[1736134207038,2.08622255,3671.6,3671.5,1.17653565]
[1736134208491,3.12941534,3671.8,3671.5,1.17653565]
[1736134208492,2.08622255,3671.8,3671.5,1.17653565]
[1736134208658,2.08622255,3671.8,3671.7,1.17653565]
[1736134209542,2.08622255,3671.8,3671.7,1.45873565]
[1736134209745,1.14323185,3671.8,3671.7,2.14974621]
[1736134210329,1.14323185,3671.8,3671.7,37.14974621]
[1736134210769,2.08622255,3672.1,3671.7,37.14974621]
[1736134211066,2.08622255,3672.1,3672.0,1.17653565]
[1736134212162,1.14323185,3672.1,3672.0,1.17653565]
[1736134213634,2.55955123,3672.1,3671.8,1.17653565]
[1736134214971,1.41631938,3672.0,3671.8,1.17653565]
[1736134216636,1.14323185,3672.1,3671.8,1.17653565]
[1736134217341,1.14323185,3672.1,3671.9,35.04370722]
[1736134217542,1.14323185,3672.1,3671.9,35.0]
[1736134217779,1.14323185,3672.1,3672.0,0.04368346]
[1736134218465,1.14323185,3672.1,3671.8,1.17653565]
[1736134218669,1.14323185,3672.1,3672.0,35.0]
[1736134218868,1.14323185,3672.1,3672.0,35.04337072]
[1736134219043,4.42234185,3672.1,3672.0,0.04337072]
[1736134219376,4.42234185,3672.1,3671.6,1.17653565]
[1736134219538,1.97143185,3672.1,3672.0,0.04324315]
[1736134220079,1.97143185,3672.1,3671.8,1.17653565]
[1736134220279,1.97143185,3672.1,3671.9,0.04326691]
[1736134220884,4.33036133,3672.1,3671.9,0.04326691]
[1736134221844,6.78127133,3672.1,3671.7,35.0]
[1736134222142,0.9429907,3672.0,3671.8,1.21982633]
[1736134222348,0.9429907,3672.0,3671.9,2.09725719]
[1736134222769,0.9429907,3672.0,3671.9,2.1405241]
[1736134223685,1.14323185,3672.1,3671.9,2.1405241]
[1736134223686,1.13995238,3672.1,3671.9,2.1405241]
[1736134225111,0.9429907,3672.2,3671.9,0.04326691]
[1736134225382,0.9429907,3672.2,3672.0,35.0]
[1736134225581,2.45091,3672.1,3672.0,35.0]
[1736134225741,3.25311,3672.1,3672.0,35.0]
[1736134225942,3.25311,3672.1,3672.0,0.04324315]
[1736134226146,4.089288,3672.1,3672.0,0.04324315]
[1736134226345,4.089288,3672.1,3671.6,35.0]
[1736134226578,0.8022,3672.1,3671.7,1.17653565]
[1736134226793,0.8022,3672.1,3671.7,1.21985009]
[1736134227276,0.8022,3672.1,3671.8,35.0]
[1736134227481,2.35866638,3672.0,3671.8,35.0]
[1736134227662,2.35866638,3672.0,3671.9,0.04326691]
[1736134227862,2.35866638,3672.0,3671.9,3.93737848]
[1736134228402,2.35866638,3672.0,3671.9,1.21980256]
[1736134228573,2.28256102,3672.3,3671.9,36.21980256]
[1736134228574,0.9429907,3672.2,3671.9,36.21980256]
[1736134229271,0.9429907,3672.2,3671.9,35.04326691]
[1736134229771,1.4158411,3672.2,3671.9,35.04326691]
[1736134230096,3.8667311,3672.2,3671.9,35.04326691]
[1736134230805,2.45098,3672.0,3671.9,35.04326691]
[1736134231616,3.22598,3672.0,3671.9,35.04326691]
[1736134232667,9.75519835,3672.0,3671.9,35.04326691]
[1736134232893,7.30421835,3672.0,3671.2,1.17653565]
[1736134233096,7.30421835,3672.0,3671.3,0.04344258]
[1736134233260,2.45111,3671.8,3671.4,35.0]
[1736134233466,0.8168,3671.9,3671.5,0.04339504]
[1736134233685,2.45124,3671.6,3671.5,0.04339504]
[1736134234002,2.45124,3671.6,3670.8,0.2822]
[1736134234003,3.26804,3671.6,3670.9,1.17653565]
[1736134234163,2.45138,3671.4,3671.0,35.0]
[1736134234372,0.8168,3671.1,3671.0,35.04209752]
[1736134234569,3.26838,3671.1,3671.0,35.04209752]
[1736134235197,0.8168,3671.1,3671.0,35.04209752]
[1736134235368,0.769,3671.3,3671.0,35.04209752]
[1736134235797,3.50016079,3671.1,3671.0,35.04209752]
[1736134237503,1.14132899,3671.1,3671.0,35.04209752]
[1736134238400,2.21285152,3671.1,3671.0,35.04209752]
[1736134238642,5.43713152,3671.1,3671.0,0.04209752]
[1736134238779,6.65463433,3671.1,3671.0,0.04209752]
[1736134238979,6.65463433,3671.1,3670.5,35.0]
[1736134239178,5.5831118,3671.1,3670.5,35.0]
[1736134239488,5.5831118,3671.1,3670.6,0.04239379]
[1736134239691,1.14055181,3670.9,3670.6,0.04239379]
[1736134239904,1.14055181,3670.9,3670.6,1.17653565]
[1736134240107,1.14055181,3670.9,3670.7,35.04237002]
[1736134240901,2.08354251,3671.0,3670.7,37.03438783]
[1736134241988,1.14055181,3671.0,3670.7,37.03438783]
[1736134242187,1.14055181,3671.0,3670.7,35.04237002]
[1736134243207,1.14055181,3671.0,3670.9,0.2822]
[1736134243208,2.08354251,3671.0,3670.9,0.2822]
[1736134243597,2.08354251,3671.0,3670.9,0.32452246]
[1736134243785,2.08354251,3671.0,3670.9,38.32452246]
[1736134244511,1.14055181,3671.5,3670.9,38.32452246]
[1736134244694,1.14055181,3671.5,3671.2,1.17653565]
[1736134244898,1.14055181,3671.5,3671.3,0.04222737]
[1736134245100,1.14055181,3671.5,3671.2,1.17653565]
[1736134245298,1.14055181,3671.5,3671.3,35.04222737]
[1736134245612,2.08354251,3671.6,3671.3,35.04222737]
[1736134246884,2.08354251,3671.6,3671.3,35.40677525]
[1736134247090,1.14055181,3671.6,3671.5,0.2822]
[1736134247292,1.14055181,3671.6,3671.5,3.32447423]
[1736134248520,1.14055181,3672.2,3671.5,3.32447423]
[1736134248679,1.14055181,3672.2,3671.6,2.71757592]
[1736134248880,1.14055181,3672.2,3671.7,0.04222669]
[1736134249406,3.59139181,3672.2,3671.7,0.04222669]
[1736134249610,1.4141983,3672.1,3671.7,0.04222669]
[1736134250520,1.4141983,3672.1,3671.8,35.0]
[1736134250817,1.4141983,3672.1,3671.9,0.04217916]
[1736134251316,0.94279886,3672.1,3671.9,0.04217916]
[1736134252919,1.14055181,3672.2,3671.9,0.04217916]
[1736134254041,1.41448478,3672.1,3671.9,0.04217916]
[1736134255655,2.08335067,3672.2,3671.9,0.04217916]
[1736134257148,2.08335067,3672.2,3671.6,2.60502548]
[1736134257359,2.08335067,3672.2,3672.0,0.04211764]
[1736134257543,2.08335067,3672.2,3671.7,35.0]
[1736134257731,2.08335067,3672.2,3672.1,0.04209388]
[1736134257932,2.08335067,3672.2,3671.7,35.0]
[1736134258145,2.08335067,3672.2,3671.8,0.04216517]
[1736134258558,2.08335067,3672.2,3671.7,35.0]
[1736134258736,1.41448961,3672.1,3671.9,0.04214141]
[1736134258919,1.41448961,3672.1,3671.8,0.04205187]
[1736134259119,1.41448961,3672.1,3671.7,35.0]
[1736134259352,1.41448961,3672.1,3671.8,0.04205187]
[1736134259747,1.41448961,3672.1,3671.7,35.0]
[1736134259947,1.41448961,3672.1,3671.9,0.04202811]
[1736134260148,1.41448961,3672.1,3671.8,0.04205187]
[1736134260348,1.41448961,3672.1,3672.0,0.04200434]
[1736134260526,1.14055181,3672.1,3671.9,0.04202811]
[1736134260856,1.14055181,3672.1,3671.7,35.0]
[1736134261399,1.14055181,3672.1,3671.8,0.04205187]
[1736134261885,1.14055181,3672.1,3671.9,0.04202811]
[1736134262089,1.14055181,3672.1,3671.7,35.0]
[1736134262287,1.14055181,3672.1,3671.8,0.04205187]
[1736134262451,1.14055181,3672.1,3671.7,35.0]
[1736134262652,1.14055181,3672.1,3671.8,0.04205187]
[1736134262847,1.14055181,3672.1,3671.8,2.71757592]
[1736134263090,1.14055181,3672.1,3671.9,0.04202811]
[1736134264154,1.14055181,3672.1,3672.0,0.2822]
[1736134264525,1.14055181,3672.1,3672.0,0.32421378]
[1736134264795,2.35746598,3672.2,3672.0,0.32421378]
[1736134264796,2.55521893,3672.2,3672.0,0.32421378]
[1736134264964,2.55521893,3672.2,3672.1,0.56468152]
[1736134265151,2.55521893,3672.2,3672.0,0.32421378]
[1736134265391,2.55521893,3672.2,3672.1,0.04182485]
[1736134265769,3.30911893,3672.2,3672.1,0.04182485]
[1736134265969,3.30911893,3672.2,3671.6,2.60502548]
[1736134266308,3.30911893,3672.2,3671.7,35.0]
[1736134266309,0.7539,3672.2,3671.7,35.0]
[1736134266593,0.7539,3672.2,3671.8,0.04189613]
[1736134266969,0.7539,3672.2,3671.6,2.60502548]
[1736134267170,0.7539,3672.2,3671.9,0.04187237]
[1736134267498,0.7539,3672.2,3672.0,0.04184861]
[1736134267662,0.7539,3672.2,3671.7,0.28872255]
[1736134267663,1.69669886,3672.2,3671.7,0.28872255]
[1736134267869,0.94279886,3672.2,3671.8,0.04189613]
[1736134268069,0.94279886,3672.2,3671.9,35.0]
[1736134268291,0.94279886,3672.2,3672.0,0.04184861]
[1736134269021,4.53419067,3672.2,3672.0,0.04184861]
[1736134269183,2.45091,3672.1,3672.0,0.04184861]
[1736134269515,3.26581,3672.1,3672.0,0.04184861]
[1736134270393,4.21699642,3672.1,3672.0,0.04184861]
[1736134270583,8.46025513,3672.1,3672.0,0.04184861]
[1736134271692,11.28806905,3672.1,3672.0,0.04184861]
[1736134271900,11.28806905,3672.1,3670.9,3.2822]
[1736134272121,8.58084579,3672.1,3671.0,0.04228924]
[1736134272414,3.2636,3671.6,3671.0,0.04228924]
[1736134272795,3.2636,3671.6,3670.9,3.2822]
[1736134273186,0.8123,3671.6,3670.9,3.2822]
[1736134273389,2.45112,3671.8,3671.1,2.60596684]
[1736134273819,2.45112,3671.8,3671.2,0.04224169]
[1736134274028,0.94279886,3671.5,3671.2,0.04224169]
[1736134274430,0.94279886,3671.5,3670.9,0.2822]
[1736134274738,0.94279886,3671.5,3670.9,0.87101668]
[1736134274938,0.94279886,3671.5,3671.0,0.04228924]
[1736134275423,1.14048414,3671.6,3671.0,0.04228924]
[1736134277044,0.7655,3671.4,3671.0,0.04228924]
[1736134278349,1.14048414,3671.6,3671.0,0.04228924]
[1736134278711,2.35759525,3671.3,3671.0,0.04228924]
[1736134280250,1.14048414,3671.5,3671.0,0.04228924]
[1736134280548,1.14048414,3671.5,3670.9,0.2822]
[1736134281611,3.59179414,3671.5,3670.9,0.2822]
[1736134282312,1.14048414,3671.5,3670.9,0.2822]
[1736134282652,1.14048414,3671.5,3671.0,0.58881668]
[1736134282827,3.49807939,3671.4,3671.0,0.58881668]
[1736134283008,3.49807939,3671.4,3671.1,0.04253452]
[1736134283939,1.14048414,3671.5,3671.1,0.04253452]
[1736134284181,1.14048414,3671.5,3670.9,0.2822]
[1736134284464,1.14048414,3671.5,3671.2,0.04251075]
[1736134284667,1.14048414,3671.5,3670.9,0.2822]
[1736134284830,1.14048414,3671.5,3671.3,0.04248698]
[1736134285034,1.14048414,3671.5,3670.9,0.87101668]
[1736134285229,2.35759525,3671.6,3671.4,0.04246321]
[1736134285230,4.06832147,3671.6,3671.4,0.04246321]
[1736134285434,4.06832147,3671.6,3670.9,0.2822]
[1736134285669,5.31243284,3671.6,3670.6,3.2822]
[1736134285848,5.31243284,3671.6,3671.0,0.0425583]
[1736134286034,5.31243284,3671.6,3670.6,0.2822]
[1736134286235,5.31243284,3671.6,3671.1,0.04256285]
[1736134286533,5.31243284,3671.6,3671.2,0.04253907]
[1736134286753,0.84063011,3671.5,3670.6,0.2822]
[1736134287090,0.8013,3671.4,3670.7,0.04265795]
[1736134287377,2.45155,3671.2,3670.3,0.2822]
[1736134287669,2.45155,3671.2,3670.8,0.04269554]
[1736134287858,2.45155,3671.2,3670.3,0.2822]
[1736134288172,2.45155,3671.2,3670.4,0.83404068]
[1736134288466,3.25268,3671.4,3670.4,0.87690216]
[1736134288647,1.14144409,3671.0,3670.4,0.87690216]
[1736134289577,1.71072622,3671.2,3670.4,0.87690216]
[1736134289578,1.14144409,3671.1,3670.4,0.87690216]
[1736134290567,0.94279886,3670.9,3670.4,0.87690216]
[1736134291135,0.94279886,3670.9,3670.5,1.17640442]
[1736134291352,0.94279886,3670.9,3670.7,1.17640442]
[1736134291555,1.14144409,3671.0,3670.8,0.0427758]
[1736134291754,1.14144409,3671.0,3670.7,1.17640442]
[1736134291986,1.14144409,3671.0,3670.8,0.0427758]
[1736134292484,1.14144409,3671.0,3670.7,1.17640442]
[1736134292695,1.14144409,3671.0,3670.9,0.04275203]
[1736134292895,1.14144409,3671.1,3670.8,0.0427758]
[1736134293072,1.14144409,3671.1,3670.9,0.04282282]
[1736134293388,1.14144409,3671.1,3670.7,1.17640442]
[1736134293791,1.14144409,3671.1,3670.8,0.0428466]
[1736134294087,2.08424295,3671.2,3670.7,1.17640442]
[1736134294609,2.08424295,3671.2,3670.8,0.0428466]
[1736134294971,2.08424295,3671.2,3670.7,1.17640442]
[1736134295159,1.14144409,3671.2,3670.9,0.04282282]
[1736134295458,1.14144409,3671.2,3670.7,1.17640442]
[1736134296013,1.14144409,3671.2,3670.8,0.04281827]
[1736134296316,2.08424295,3671.2,3670.7,1.17640442]
[1736134296477,2.08424295,3671.2,3670.8,0.04281827]
[1736134296685,2.08424295,3671.2,3670.7,1.17640442]
[1736134296995,2.08424295,3671.2,3670.8,0.04281827]
[1736134297309,1.14144409,3671.2,3670.7,1.17640442]
[1736134297711,1.14144409,3671.2,3670.8,0.04281827]
[1736134297861,1.14144409,3671.2,3670.7,1.17640442]
[1736134298063,1.14144409,3671.2,3670.8,0.04281827]
[1736134298259,1.14144409,3671.2,3670.7,1.17640442]
[1736134298714,1.41499266,3671.1,3670.7,1.17640442]
[1736134298966,1.41499266,3671.1,3670.8,0.04281827]
[1736134299312,1.41499266,3671.1,3670.5,1.17640442]
[1736134299514,1.41499266,3671.1,3670.6,0.04286583]
[1736134300070,0.94279886,3671.1,3670.6,0.04286583]
[1736134301458,2.08424295,3671.1,3670.6,0.04286583]
[1736134303111,1.41506288,3671.0,3670.6,0.04286583]
[1736134304467,2.08424295,3671.1,3670.6,0.04286583]
[1736134305691,4.53583295,3671.1,3670.6,0.04286583]
[1736134305828,0.8171,3670.9,3670.6,0.04286583]
[1736134306028,2.45181,3670.8,3670.6,0.04286583]
[1736134306267,2.45181,3670.8,3670.1,1.17640442]
[1736134306726,2.45181,3670.8,3670.2,0.04295153]
[1736134306992,2.45186,3670.7,3670.2,0.04295153]
[1736134307293,3.25995,3670.4,3670.2,0.04295153]
[1736134307430,3.25995,3670.4,3670.0,1.17640442]
[1736134307778,3.25995,3670.4,3669.8,1.17640442]
[1736134307945,3.25995,3670.4,3670.1,0.04297532]
[1736134308147,3.25995,3670.4,3669.8,1.17640442]
[1736134308691,3.25995,3670.4,3669.9,0.04302289]
[1736134308911,3.4996761,3670.3,3669.9,0.04302289]
[1736134309987,5.9517961,3670.3,3669.9,0.04302289]
[1736134310600,4.53636295,3670.3,3670.0,0.04299911]
[1736134310926,4.53636295,3670.3,3669.7,0.2822]
[1736134311386,4.53636295,3670.3,3669.8,0.04304668]
[1736134311743,0.94279886,3670.2,3669.7,0.2822]
[1736134311944,0.94279886,3670.2,3669.8,0.04304668]
[1736134312188,0.94279886,3670.2,3669.7,0.2822]
[1736134312332,0.94279886,3670.2,3669.9,0.04302289]
[1736134312535,0.94279886,3670.2,3669.7,0.2822]
[1736134312731,0.94279886,3670.2,3669.8,0.04304668]
[1736134312932,0.94279886,3670.2,3669.7,0.2822]
[1736134313266,0.94279886,3670.2,3669.8,0.04304668]
[1736134313668,0.94279886,3670.2,3669.7,0.2822]
[1736134313885,0.94279886,3670.2,3669.9,0.04302289]
[1736134314091,0.94279886,3670.2,3669.8,0.04304668]
[1736134314290,0.94279886,3670.2,3670.0,0.04299911]
[1736134314492,0.94279886,3670.2,3670.0,1.17640442]
[1736134314695,0.94279886,3670.2,3670.1,0.74711805]
[1736134314974,0.94279886,3670.2,3670.1,3.74711805]
[1736134315457,1.14144409,3670.8,3670.1,3.74711805]
[1736134315659,1.14144409,3670.8,3670.1,0.74711805]
[1736134315862,1.14144409,3670.8,3670.1,0.32517532]
[1736134316774,2.08348218,3670.8,3670.1,0.32517532]
[1736134316944,4.53526218,3670.8,3670.1,0.32517532]
[1736134317568,2.45194,3670.6,3670.1,0.04297532]
[1736134317738,0.7742,3670.5,3669.9,0.2822]
[1736134317938,0.7742,3670.5,3670.0,0.04299911]
[1736134318670,2.3553891,3670.4,3670.0,0.04299911]
[1736134320543,2.3553891,3670.4,3670.2,35.0]
[1736134320845,2.3553891,3670.4,3670.3,0.04320162]
[1736134321685,0.94203809,3670.4,3670.3,0.04320162]
[1736134322694,1.14144409,3670.6,3670.3,0.04320162]
[1736134324152,2.08348218,3670.6,3670.4,35.0]
[1736134324498,2.08348218,3670.6,3670.5,0.04315405]
[1736134324857,2.08348218,3670.6,3670.4,35.0]
[1736134325058,2.08348218,3670.6,3670.5,0.04315405]
[1736134325402,2.08348218,3670.6,3670.4,35.0]
[1736134325548,1.14144409,3670.6,3670.5,3.04292997]
[1736134326350,1.14144409,3670.6,3670.5,0.04315405]
[1736134326571,1.14144409,3670.6,3670.4,35.0]
[1736134326775,1.14144409,3670.6,3670.5,0.04315405]
[1736134326996,3.59316409,3670.9,3670.4,35.0]
[1736134327150,3.59316409,3670.9,3670.5,0.04315405]
[1736134327351,3.59316409,3670.9,3670.4,35.0]
[1736134327609,3.59316409,3670.9,3670.5,0.04315405]
[1736134328103,3.59316409,3670.9,3670.4,35.0]
[1736134328250,1.14144409,3670.7,3670.6,0.04313027]
[1736134328450,1.14144409,3670.7,3670.5,0.04315405]
[1736134328689,1.14144409,3670.7,3670.6,0.04313027]
[1736134329028,1.14144409,3670.7,3670.4,35.0]
[1736134329169,1.14144409,3670.7,3670.6,0.04313027]
[1736134329374,1.14144409,3670.7,3670.4,35.0]
[1736134329576,1.41403166,3670.6,3670.5,0.04315405]
[1736134329779,4.66816166,3670.6,3670.4,35.0]
[1736134329977,4.66814166,3670.6,3670.5,0.04315405]
[1736134330178,4.66814166,3670.6,3670.4,35.0]
[1736134330391,4.66814166,3670.6,3670.5,0.04312572]
[1736134330685,5.80958575,3670.6,3670.5,0.04312572]
[1736134330876,5.80958575,3670.6,3670.4,35.0]
[1736134331071,5.80958575,3670.6,3670.5,0.04312572]
[1736134331477,5.80958575,3670.6,3670.4,35.0]
[1736134331684,5.80958575,3670.6,3670.5,0.04312572]
[1736134331875,5.53507829,3670.6,3670.5,0.04312572]
[1736134332200,2.45198,3670.5,3670.4,35.0]
[1736134332577,3.08316829,3670.6,3670.4,35.0]
[1736134332984,5.04825946,3670.6,3670.4,35.0]
[1736134333382,4.24605946,3670.6,3670.4,35.0]
[1736134334002,2.35892192,3670.5,3670.4,35.0]
[1736134335016,2.35892192,3670.5,3670.4,37.99977592]
[1736134335304,2.08488486,3670.5,3670.4,40.99977592]
[1736134336814,1.14131609,3671.1,3670.4,40.99977592]
[1736134337499,2.45152,3671.2,3670.4,40.99977592]
[1736134337697,2.45152,3671.2,3670.5,2.71757592]
[1736134339477,2.45152,3671.2,3670.4,5.99977592]
[1736134339478,2.45152,3671.2,3670.4,3.2822]
[1736134339814,2.45152,3671.2,3670.6,35.0]
[1736134341115,2.45139,3671.4,3670.6,35.0]
[1736134341714,1.1418803,3671.0,3670.6,35.0]
[1736134341915,2.45139,3671.4,3670.6,35.0]
[1736134342116,2.45146,3671.3,3670.6,37.71757592]
[1736134342411,2.45146,3671.3,3670.7,0.04262867]
[1736134342939,1.14191447,3671.1,3670.7,0.04262867]
[1736134343231,1.14191447,3671.1,3670.8,0.2822]
[1736134343391,3.21486,3671.5,3670.8,0.2822]
[1736134343594,2.45138,3671.4,3670.9,0.04258112]
[1736134343917,2.45144,3671.3,3670.9,0.04258112]
[1736134345320,1.14205735,3671.0,3670.9,0.04258112]
[1736134345716,1.14205735,3671.1,3670.9,35.04258112]
[1736134346045,2.45144,3671.3,3670.9,35.04258112]
[1736134347150,1.14199874,3671.1,3670.9,35.04258112]
[1736134347344,2.45144,3671.3,3670.9,35.04258112]
[1736134348321,2.3607183,3671.0,3670.9,35.04258112]
[1736134349319,2.08628256,3671.1,3670.9,35.04258112]